Cogmind - Beta 13 *** ADVENTURER MODE // 2024.03.11 @ 19:10:21 Player: Salamander Result: Destroyed by G-67 Veteran with Field Laser Performance ------------- Evolutions (6) 3000 Regions Visited (26) 5200 Robots Destroyed (171) 855 Value Destroyed (6109) 6109 Prototype IDs (71) 1420 Alien Tech Used (1) 200 Bonus (5397) 5397 TOTAL SCORE: 22181 Bonus ------- High Alert Combat Kills 446 Follower Combat Kills 3181 Network Hubs Disabled 200 Met Data Miner 300 Met Imprinter 300 Was Imprinted 300 Met Zhirov 300 Built Enhanced Grunts 300 Read Decrypted Archives 300 Friendly Fire -230 Cogmind --------- Core Integrity 0/1150 Matter 300/300 Energy 99/100 System Corruption 0% Temperature Cool (0) Movement Core (50) Location -3/Proximity Caves Parts ------- > --- POWER (1) -------- (None) > --- PROPULSION (6) --- (None) > --- UTILITY (10) ----- Enhanced Optical Array Improved Signal Interpreter > --- WEAPON (2) ------- Lance > --- INVENTORY (5) ---- Advanced Energy Well (500) Dimensional Node Initializer Core Expander Heavy Proton Missile Launcher Peak State ------------ > --- POWER ------------ Micro Antimatter Reactor > --- PROPULSION ------- Gravmag Array Zionite Glidesys I Gyrokinetic Inverter Antigrav Array > --- UTILITY ---------- Experimental Heat Sink Large Storage Unit Advanced Energy Well Enhanced Optical Array Improved Signal Interpreter Improved Transmission Jammer Zionite Weapon Casing Layered Medium Armor Plating > --- WEAPON ----------- Heavy Proton Missile Launcher CR-A16's Pointy Stick > --- INVENTORY -------- Zionite Light DM Reactor Gravmag Array Zionite Biocell Improved Sensor Array Improved Utility Shielding Improved Utility Shielding Improved Hacking Suite Advanced System Shield Hacking Drone Bay Core Expander Neutron Cannon Smartbomb Launcher Lance [Rating: 107] Favorites ----------- Power Light Nuclear Core Engine Light Ion Engine Power Core Light Nuclear Core Reactor Zionite Light DM Reactor Propulsion Armored Treads Treads Armored Treads Wheel Wheel Hover Unit Gravmag Array Utility Improved Signal Interpreter Device Experimental Heat Sink Storage High-capacity Storage Unit Processor Improved Signal Interpreter Hackware System Shield Protection Improved Medium Armor Plating Weapon Enhanced Autogun Energy Cannon Neutron Cannon Ballistic Gun Enhanced Autogun Launcher Heavy Proton Missile Launcher Slashing Weapon Katana Piercing Weapon CR-A16's Pointy Stick Build | -11 -10 -10 -10 -9 -8 -8 -7 -7 -7 -7 -6 -6 -6 -6 -6 -5 -5 -5 -5 -5 -5 -4 -4 -4 -4 -3 ------- Run | Yrd Mat Min Exi Min Mat Sto Fac Low Low Zio Pro Fac Low Low Dat Pro Fac Ext Cet Arc Hub Fac Upp Upp Zhi Pro Slots Evolved 12 | . . . . . 4 . 2 . . . . 2 . . . . 2 . . . . 2 . . . . Power . | . . . . . . . . . . . . . . . . . . . . . . . . . . . Propulsion 4 | . . . . . 2 . 1 . . . . 1 . . . . . . . . . . . . . . Utility 8 | . . . . . 2 . 1 . . . . 1 . . . . 2 . . . . 2 . . . . Weapon . | . . . . . . . . . . . . . . . . . . . . . . . . . . . Parts Attached 169 | 7 11 3 1 . 19 13 9 5 1 5 5 19 2 1 . 1 21 15 9 . 6 3 1 4 6 2 Power 25 | 1 2 . . . 4 1 1 1 . . . 1 . . . . 5 1 1 . 2 1 . 1 2 1 Engine 8 | 1 2 . . . 1 1 . . . . . 1 . . . . 1 . . . . 1 . . . . Core 12 | . . . . . 3 . 1 1 . . . . . . . . 4 . . . . . . 1 1 1 Reactor 5 | . . . . . . . . . . . . . . . . . . 1 1 . 2 . . . 1 . Propulsion 46 | 2 3 1 . . 9 4 3 . 1 . . 11 . . . . 6 3 1 . 1 . . 1 . . Treads 24 | 2 3 1 . . 8 4 3 . 1 . . 2 . . . . . . . . . . . . . . Leg . | . . . . . . . . . . . . . . . . . . . . . . . . . . . Wheel 1 | . . . . . 1 . . . . . . . . . . . . . . . . . . . . . Hover 21 | . . . . . . . . . . . . 9 . . . . 6 3 1 . 1 . . 1 . . Flight . | . . . . . . . . . . . . . . . . . . . . . . . . . . . Utility 50 | 1 2 . 1 . 4 2 3 2 . 2 3 3 1 . . 1 5 7 3 . 2 2 1 1 4 . Device 14 | . . . . . 2 . . 1 . 2 2 . . . . . 2 3 1 . 1 . . . . . Storage 8 | 1 1 . 1 . . . . . . . . 1 . . . . . 1 1 . 1 . . . 1 . Processor 5 | . . . . . . 1 . . . . . 2 . . . 1 1 . . . . . . . . . Hackware 6 | . . . . . . . 2 . . . . . . . . . 1 . . . . 1 1 . 1 . Protection 17 | . 1 . . . 2 1 1 1 . . 1 . 1 . . . 1 3 1 . . 1 . 1 2 . Artifact . | . . . . . . . . . . . . . . . . . . . . . . . . . . . Weapon 48 | 3 4 2 . . 2 6 2 2 . 3 2 4 1 1 . . 5 4 4 . 1 . . 1 . 1 Energy Gun . | . . . . . . . . . . . . . . . . . . . . . . . . . . . Energy Cannon 7 | . . . . . . . . . . . . 1 . . . . 1 2 2 . 1 . . . . . Ballistic Gun 24 | 3 4 2 . . 2 4 2 1 . 2 1 2 . . . . 1 . . . . . . . . . Ballistic Cannon . | . . . . . . . . . . . . . . . . . . . . . . . . . . . Launcher 9 | . . . . . . 1 . 1 . . 1 . . 1 . . 1 2 1 . . . . 1 . . Special Weapon . | . . . . . . . . . . . . . . . . . . . . . . . . . . . Impact Weapon . | . . . . . . . . . . . . . . . . . . . . . . . . . . . Slashing Weapon 1 | . . . . . . 1 . . . . . . . . . . . . . . . . . . . . Piercing Weapon 7 | . . . . . . . . . . 1 . 1 1 . . . 2 . 1 . . . . . . 1 Special Melee Weapon . | . . . . . . . . . . . . . . . . . . . . . . . . . . . Unidentified Prototypes 22 | . . . . . . 3 1 . . 1 . 4 . . . . 2 6 1 . . . . . 4 . Parts Lost 55 | . 1 3 . . 6 . 3 2 1 . . 4 1 . . 2 13 2 . . 4 . . 2 . 11 Power 10 | . 1 . . . 2 . . 1 . . . . . . . . 2 . . . 2 . . . . 2 Propulsion 20 | . . 2 . . 2 . 1 . 1 . . 3 . . . . 5 1 . . 1 . . 2 . 2 Utility 19 | . . . . . 2 . 2 1 . . . . 1 . . 2 3 1 . . 1 . . . . 6 Weapon 6 | . . 1 . . . . . . . . . 1 . . . . 3 . . . . . . . . 1 Highest Loss Streak 5 | . 1 3 . . 3 . 1 2 1 . . 1 1 . . 2 5 2 . . 4 . . 2 . 5 To Critical Strikes 3 | . . . . . . . 1 . . . . . . . . . 1 . . . . . . 1 . . Average Slot Usage (%) 87 | . 89 89 85 85 75 100 96 93 99 100 100 85 76 73 73 65 62 91 93 88 87 66 80 78 71 52 Engine 4 | . 13 14 14 14 3 9 4 . . . . 5 6 6 6 6 1 . . . . 1 5 . . . Core 2 | . . . . . 3 . 2 6 7 7 7 . . . . . 3 . . . . . . 4 5 1 Treads 21 | . 27 18 14 14 28 36 37 38 37 38 38 11 . . . . . . . . . . . . . . Hover 6 | . . . . . . . . . . . . 13 20 20 20 20 19 28 28 23 22 15 15 12 10 5 Device 7 | . . . . . 7 13 5 1 7 7 11 6 6 6 6 . 5 7 11 17 17 15 15 15 14 6 Storage 7 | . 14 14 14 14 9 9 7 7 7 7 7 6 6 6 6 6 5 5 5 5 5 5 5 5 5 4 Processor 7 | . . . . . . 4 7 7 7 7 7 20 16 13 13 18 13 11 11 11 11 10 10 10 10 10 Hackware 3 | . . . . . . . 6 7 7 7 7 6 . . . . . . . . . . 6 10 10 13 Protection 7 | . 4 14 14 14 3 9 6 6 7 7 3 . 6 6 6 1 . 18 16 11 11 5 10 10 8 3 Ballistic Gun 11 | . 27 28 28 28 18 17 15 14 15 13 13 6 . . . . . . . . . . . . . . Piercing Weapon 1 | . . . . . . . . . . 1 . 3 6 6 6 6 5 5 7 5 5 5 5 5 5 5 Naked Turns . | . . . . . . . . . . . . . . . . . . . . . . . . . . . Heaviest Build 66 | 12 30 30 48 48 62 66 66 64 60 60 60 58 43 43 41 41 46 55 54 45 45 41 41 43 34 40 Greatest Support 130 | 40 40 40 20 20 80 82 108 108 108 108 108 130 60 60 60 60 60 68 71 71 71 57 46 51 31 31 Greatest Overweight (x) 13 | . 3 1 2 2 13 . . . . . . 2 . . . . 1 . . . . . . 1 1 3 Average Overweight (x) . | . . . 1 2 . . . . . . . . . . . . . . . . . . . . . 1 Largest Inventory Capacity 20 | 8 15 15 20 20 20 20 20 20 20 20 20 20 15 15 15 15 15 15 15 15 15 15 15 15 15 15 Average Capacity 17 | 7 8 15 15 20 20 20 20 20 20 20 20 16 15 15 15 15 15 15 15 15 15 15 15 15 15 14 Most Carried 20 | 2 10 10 13 13 20 20 20 20 19 20 20 20 15 15 15 15 15 15 15 15 15 14 14 15 15 15 Average Carried 16 | 1 6 9 11 13 17 19 19 19 18 19 19 16 14 15 15 14 12 14 14 15 14 13 13 14 14 12 Final Capacity 20 | 8 15 15 20 20 20 20 20 20 20 20 20 15 15 15 15 15 15 15 15 15 15 15 15 15 15 5 Final Carried 20 | 2 10 9 13 13 20 20 20 19 19 20 20 15 15 15 15 14 15 15 15 15 14 14 14 15 15 4 Class Distribution -------------------- 33% | Hacker-Mutant 25% | Mutant 9% | Commander-Mutant 6% | Scavenger-Mutant 5% | Hacker-Scout 5% | Messiah-Mutant Dominant Class ---------------- Mutant | -10/Materials Mutant | -10/Mines Mutant | -10/Exiles Mutant | -9/Mines Scavenger-Mutant | -8/Materials Commander-Mutant | -8/Storage Hacker-Mutant | -7/Factory Hacker-Mutant | -7/Lower Caves Hacker-Mutant | -7/Lower Caves Hacker-Mutant | -7/Zion Hacker-Mutant | -6/Proximity Caves Hacker-Scout | -6/Factory Mutant | -6/Lower Caves Mutant | -6/Lower Caves Mutant | -6/Data Miner Mutant | -5/Proximity Caves Mutant | -5/Factory Messiah-Mutant | -5/Extension Messiah-Mutant | -5/Cetus Commander-Ninja | -5/Archives Messiah-Ninja | -5/Hub_04(d) Scavenger-Ninja | -4/Factory Scavenger-Ninja | -4/Upper Caves Hacker-Ninja | -4/Upper Caves Hacker-Assassin | -4/Zhirov Hacker-Mutant | -3/Proximity Caves Resources | -11 -10 -10 -10 -9 -8 -8 -7 -7 -7 -7 -6 -6 -6 -6 -6 -5 -5 -5 -5 -5 -5 -4 -4 -4 -4 -3 ----------- Run | Yrd Mat Min Exi Min Mat Sto Fac Low Low Zio Pro Fac Low Low Dat Pro Fac Ext Cet Arc Hub Fac Upp Upp Zhi Pro Matter Collected 4269 | 282 297 226 . . 621 473 617 258 90 58 104 142 15 240 . 15 174 300 106 . 92 . 17 72 60 10 Remotely . | . . . . . . . . . . . . . . . . . . . . . . . . . . . Salvage Created 8083 | 91 616 185 . . 1046 822 986 553 108 . 9 400 . 492 . 191 912 942 65 . 143 11 . 111 369 31 Parts 416 | 2 38 10 . . 61 46 48 23 8 . 3 35 . 19 . 10 54 31 4 . 10 4 . 4 3 3 Haulers Intercepted 6 | . 1 . . . 2 2 . . . . . . . . . . . . . . 1 . . . . . Recyclers Shooed 3 | . . . . . 1 1 . . . . . . . . . . 1 . . . . . . . . . Parts Field Recycled . | . . . . . . . . . . . . . . . . . . . . . . . . . . . Retrieved Matter . | . . . . . . . . . . . . . . . . . . . . . . . . . . . Parts Self-Destructed 57 | . . . . . . . . 16 8 2 13 . . 7 . 4 . . . . . . . 2 2 3 Prevented 25 | . . . . . . . . 6 . . 5 . . 12 . 2 . . . . . . . . . . Kills | -11 -10 -10 -10 -9 -8 -8 -7 -7 -7 -7 -6 -6 -6 -6 -6 -5 -5 -5 -5 -5 -5 -4 -4 -4 -4 -3 ------- Run | Yrd Mat Min Exi Min Mat Sto Fac Low Low Zio Pro Fac Low Low Dat Pro Fac Ext Cet Arc Hub Fac Upp Upp Zhi Pro Combat Hostiles Destroyed 132 | . 11 4 . . 21 9 18 11 2 . 1 8 . 10 . 8 13 11 . . . . . 4 . 1 Melee 16 | . . . . . . . . . . . . . . 1 . . 9 5 . . . . . . . 1 Guns 74 | . 11 4 . . 21 9 18 5 2 . . 4 . . . . . . . . . . . . . . Cannons 2 | . . . . . . . . . . . . . . . . . 1 1 . . . . . . . . AOE 31 | . . . . . . . . 5 . . 1 4 . 5 . 8 3 1 . . . . . 4 . . Classes Destroyed 18 | 1 4 . . . 3 1 2 1 . . 1 . . 2 . . . 1 1 . . 1 . . . . Worker 6 | . 2 . . . 2 . 2 . . . . . . . . . . . . . . . . . . . Builder 1 | . . . . . . . . . . . . . . . . . . . . . . 1 . . . . Tunneler 1 | . . . . . . . 1 . . . . . . . . . . . . . . . . . . . Hauler 6 | . 1 . . . 2 2 . . . . . . . . . . . . . . 1 . . . . . Recycler 8 | 1 . . . . . 3 1 . . . . . . . . . 2 1 . . . . . . . . Operator 5 | . . . . . . 3 . . . . . 1 . . . . . 1 . . . . . . . . Drone 2 | . . . . . . . . . . . 1 . . . . 1 . . . . . . . . . . Watcher 11 | . 2 . . . 2 . 1 . . . . 3 . . . . 1 . . . 2 . . . . . Swarmer 40 | . . . . . 7 . 3 3 . . . 4 . 6 . 7 5 . . . . . . 4 . 1 Grunt 51 | . 11 4 . . 8 5 9 5 . . . . . 3 . . 1 5 . . . . . . . . Brawler 3 | . . . . . . . . 1 . . . . . . . . . 2 . . . . . . . . Duelist 1 | . . . . . . . . . . . . . . 1 . . . . . . . . . . . . Sentry 18 | . . . . . 4 4 . 1 1 . . 2 . . . . 3 3 . . . . . . . . Specialist 1 | . . . . . . . . . . . . . . . . . . 1 . . . . . . . . Hunter 10 | . . . . . 2 . 3 1 1 . . 2 . . . . 1 . . . . . . . . . Programmer 6 | . . . . . . . 3 . . . . . . . . . 3 . . . . . . . . . Samaritan 1 | . . . . . . . . . . . . . . 1 . . . . . . . . . . . . Fireman 1 | . . . . . . . . . . . . . . . . . . . 1 . . . . . . . Best Kill Streak 9 | 1 2 2 . . 9 3 3 6 1 . 1 4 . 4 . 7 6 5 . . 1 1 . 4 . 1 Combat Bots Only 7 | . 2 2 . . 7 3 3 6 1 . 1 4 . 4 . 7 5 5 . . . . . 4 . 1 Max Kills in Single Turn 4 | 1 1 1 . . 2 2 2 1 1 . 1 4 . 3 . 4 2 1 1 . 1 1 . 3 . 1 Gunslinging 1 | . . . . . 1 1 . . . . . . . . . . . . . . . . . . . . Exploded 4 | . . . . . . . . 1 . . 1 4 . 2 . 4 2 1 . . . . . 3 . . Melee 1 | . . . . . . . . . . . . . . 1 . . 1 1 . . . . . . . 1 Uniques/NPCs Destroyed . | . . . . . . . . . . . . . . . . . . . . . . . . . . . Combat | -11 -10 -10 -10 -9 -8 -8 -7 -7 -7 -7 -6 -6 -6 -6 -6 -5 -5 -5 -5 -5 -5 -4 -4 -4 -4 -3 -------- Run | Yrd Mat Min Exi Min Mat Sto Fac Low Low Zio Pro Fac Low Low Dat Pro Fac Ext Cet Arc Hub Fac Upp Upp Zhi Pro Hostile Shots Fired 1015 | . 55 31 . . 143 41 118 55 40 . . 98 37 15 . 6 147 35 3 . 14 . 16 38 . 123 Missed 354 | . 23 8 . . 31 15 29 19 14 . . 45 23 7 . 2 43 17 1 . 8 . 8 20 . 41 Damage Taken 10003 | . 306 248 . . 1186 328 1086 726 170 . . 923 134 103 . 80 1852 305 43 . 615 . 119 219 . 1560 Core 1894 | . 45 8 . . 93 12 15 14 4 . . 79 17 . . . 292 31 9 . 122 . 20 78 . 1055 Absorbed by Shields 75 | . . . . . . . . . . . . . . . . . . 45 30 . . . . . . . Redirected to Shielding 380 | . . . . . . . . . . . . . 56 30 . 15 . 59 7 . 123 . 11 30 . 49 Ignored by Resistances 2803 | . 93 74 . . 349 92 315 201 56 . . 265 41 29 . 23 454 96 22 . 160 . 33 63 . 437 Core Remaining (%) 82 | 100 . . . 78 . 80 . . . . 95 . . . . 88 . . . . 54 . . . . . Volleys Fired 396 | 2 57 16 . . 72 48 71 25 7 . 8 22 . 13 . 8 13 20 12 . . . . 2 . . Largest 2 | 2 2 2 . . 2 2 2 2 2 . 2 2 . 1 . 1 1 1 1 . . . . 1 . . Hottest 90 | 40 40 40 . . 51 51 53 53 53 . 58 85 . 36 . 36 85 90 90 . . . . 40 . . Shots Fired 705 | 4 114 31 . . 144 96 142 36 14 . 15 41 . 13 . 8 13 20 12 . . . . 2 . . Gun 629 | 4 114 31 . . 144 96 142 29 14 . 14 39 . . . . 2 . . . . . . . . . Cannon 34 | . . . . . . . . . . . . 2 . . . . 8 13 11 . . . . . . . Launcher 42 | . . . . . . . . 7 . . 1 . . 13 . 8 3 7 1 . . . . 2 . . Special . | . . . . . . . . . . . . . . . . . . . . . . . . . . . Kinetic 629 | 4 114 31 . . 144 96 142 29 14 . 14 39 . . . . 2 . . . . . . . . . Thermal 34 | . . . . . . . . . . . . 2 . . . . 8 13 11 . . . . . . . Explosive . | . . . . . . . . . . . . . . . . . . . . . . . . . . . Electromagnetic 42 | . . . . . . . . 7 . . 1 . . 13 . 8 3 7 1 . . . . 2 . . Robot Hit Streak 46 | 4 21 14 . . 26 46 19 21 10 . 10 6 . 5 . 9 6 16 . . . . . 1 . . Robot Miss Streak 4 | . 2 1 . . 2 2 3 2 1 . 4 2 . 2 . 3 1 2 . . . . . . . . Penetration Max 1 | . . . . . . . 1 . . . . . . . . . . . . . . . . . . . Secondary Targets 11 | . 1 1 . . 5 3 1 . . . . . . . . . . . . . . . . . . . Max Gunslinging Chain 1 | . 1 1 . . 1 1 1 . . . . . . . . . . . . . . . . . . . Shots Hit Robots 615 | 4 89 28 . . 123 85 114 28 12 . 10 32 . 9 . 4 37 23 . . 7 1 . 1 7 1 Core Hits 301 | 2 32 12 . 1 55 29 40 21 6 . 4 16 . 11 . 9 25 22 1 . 3 1 . 5 5 1 Critical Kills 3 | . . . . . . . 2 . . . . 1 . . . . . . . . . . . . . . Critical Parts Destroyed . | . . . . . . . . . . . . . . . . . . . . . . . . . . . Critical Strikes 4 | . . . . . . . 2 . . . . 1 . . . . 1 . . . . . . . . . Destroy 3 | . . . . . . . 2 . . . . 1 . . . . . . . . . . . . . . Impale 1 | . . . . . . . . . . . . . . . . . 1 . . . . . . . . . Melee Attacks 177 | . . . . . . 1 . . . 1 . 45 1 7 . . 54 11 21 . 17 10 1 . 7 1 Impact . | . . . . . . . . . . . . . . . . . . . . . . . . . . . Slashing 1 | . . . . . . 1 . . . . . . . . . . . . . . . . . . . . Piercing 176 | . . . . . . . . . . 1 . 45 1 7 . . 54 11 21 . 17 10 1 . 7 1 Sneak Attacks 10 | . . . . . . . . . . . . 1 . . . . 4 3 . . 1 1 . . . . Combat Hostiles 2 | . . . . . . . . . . . . . . . . . . 2 . . . . . . . . Follow-up Attacks . | . . . . . . . . . . . . . . . . . . . . . . . . . . . Damage Inflicted 15045 | 52 1168 246 . 2 1734 1610 2235 879 196 . 241 1072 . 807 . 305 1628 1602 97 . 330 68 . 267 479 27 Guns 8240 | 52 1168 246 . . 1734 1567 2235 419 196 . 195 428 . . . . . . . . . . . . . . Cannons 696 | . . . . . . . . . . . . . . . . . 268 428 . . . . . . . . Explosions 3292 | . . . . . . . . 460 . . 46 390 . 741 . 305 215 771 97 . . . . 267 . . Melee 2772 | . . . . . . . . . . . . 254 . 66 . . 1145 403 . . 330 68 . . 479 27 Ramming 45 | . . . . 2 . 43 . . . . . . . . . . . . . . . . . . . . Kinetic 8240 | 52 1168 246 . . 1734 1567 2235 419 196 . 195 428 . . . . . . . . . . . . . . Thermal 1296 | . . . . . . . . . . . . 390 . . . 49 312 428 . . . . . 117 . . Explosive . | . . . . . . . . . . . . . . . . . . . . . . . . . . . Electromagnetic 2692 | . . . . . . . . 460 . . 46 . . 741 . 256 171 771 97 . . . . 150 . . Impact . | . . . . . . . . . . . . . . . . . . . . . . . . . . . Slashing . | . . . . . . . . . . . . . . . . . . . . . . . . . . . Piercing 2772 | . . . . . . . . . . . . 254 . 66 . . 1145 403 . . 330 68 . . 479 27 Highest Corruption 14 | . . . . . . . 3 3 3 3 . . . . . . 8 10 10 10 14 . . . . . Average Corruption 5 | . . . . . . . 1 3 3 3 . . . . . . 3 9 10 10 12 . . . . . Corruption Purged . | . . . . . . . . . . . . . . . . . . . . . . . . . . . Corruption Blocked . | . . . . . . . . . . . . . . . . . . . . . . . . . . . Effects 101 | . . . . . . . 13 13 4 3 . . . . . . 8 30 8 3 19 . . . . . Message Errors 22 | . . . . . . . 4 2 . 1 . . . . . . 2 4 3 1 5 . . . . . Matter Fused 24 | . . . . . . . 4 6 . 1 . . . . . . . 8 1 1 3 . . . . . Heat Flow Errors 14 | . . . . . . . 2 2 . . . . . . . . 1 5 . . 4 . . . . . Energy Discharges 18 | . . . . . . . 2 2 1 1 . . . . . . 1 5 3 . 3 . . . . . Parts Rejected 1 | . . . . . . . . . . . . . . . . . 1 . . . . . . . . . Parts Fused 2 | . . . . . . . . . . . . . . . . . 2 . . . . . . . . . Data Loss (minor) 10 | . . . . . . . 1 . 2 . . . . . . . 1 3 1 1 1 . . . . . Data Loss (major) 1 | . . . . . . . . 1 . . . . . . . . . . . . . . . . . . Misfires 1 | . . . . . . . . . . . . . . . . . . 1 . . . . . . . . Alerts 2 | . . . . . . . . . 1 . . . . . . . . 1 . . . . . . . . Misdirections 5 | . . . . . . . . . . . . . . . . . . 2 . . 3 . . . . . Weapon Failures 1 | . . . . . . . . . . . . . . . . . . 1 . . . . . . . . Overload Shots . | . . . . . . . . . . . . . . . . . . . . . . . . . . . Overflow Damage 450 | . . . . . . . . . . . . 192 . 16 . . 138 22 . . 19 . . 9 54 . Projectiles 22 | . . . . . . . . . . . . . . . . . . 22 . . . . . . . . Explosions 181 | . . . . . . . . . . . . 156 . 16 . . . . . . . . . 9 . . Melee 247 | . . . . . . . . . . . . 36 . . . . 138 . . . 19 . . . 54 . Knockbacks 1 | . . . . 1 . . . . . . . . . . . . . . . . . . . . . . Impact 1 | . . . . 1 . . . . . . . . . . . . . . . . . . . . . . Kinetic . | . . . . . . . . . . . . . . . . . . . . . . . . . . . Secondary . | . . . . . . . . . . . . . . . . . . . . . . . . . . . Self-Inflicted Damage 342 | . . . . . . . . 166 . . . 106 . 11 . 33 20 . 6 . . . . . . . Shots 16 | . . . . . . . . 9 . . . 2 . 1 . 2 1 . 1 . . . . . . . Rammed 4 | . 1 . . 1 . 2 . . . . . . . . . . . . . . . . . . . . Targets Rammed 4 | . 1 . . 1 . 2 . . . . . . . . . . . . . . . . . . . . Kicked . | . . . . . . . . . . . . . . . . . . . . . . . . . . . Crushed . | . . . . . . . . . . . . . . . . . . . . . . . . . . . Highest Temperature 275 | . 30 52 . . 20 35 240 236 34 . 9 92 . 6 . 12 275 196 154 . 249 . . . . . Average Temperature 48 | . 10 16 . . 7 8 45 44 14 . 4 28 . 6 . 9 119 64 81 . 125 . . . . . Received Heat Transfer 2919 | . 240 222 . . 630 216 219 198 54 . . 150 72 27 . . 405 96 . . 68 . . . . 322 Effects 3 | . . . . . . . . . . . . . . . . . 3 . . . . . . . . . Interference 3 | . . . . . . . . . . . . . . . . . 3 . . . . . . . . . Siege Activations . | . . . . . . . . . . . . . . . . . . . . . . . . . . . Robots Corrupted 9 | . . . . . . . . 1 . . . . . 4 . . . 4 . . . . . . . . Combat Hostiles 9 | . . . . . . . . 1 . . . . . 4 . . . 4 . . . . . . . . Parts Fried 14 | . . . . . . . . 1 . . . 1 . 8 . 1 . 3 . . . . . . . . Impact Corruptions . | . . . . . . . . . . . . . . . . . . . . . . . . . . . Robots Melted . | . . . . . . . . . . . . . . . . . . . . . . . . . . . Combat Hostiles . | . . . . . . . . . . . . . . . . . . . . . . . . . . . Parts Melted 6 | . . . . . . 2 1 . . . . . . . . . . 2 . . . . . 1 . . Heat Transferred 659 | . . . . . . . . . . . . 250 . . . 50 259 . . . . . . 100 . . Parts Sabotaged . | . . . . . . . . . . . . . . . . . . . . . . . . . . . Parts Stolen . | . . . . . . . . . . . . . . . . . . . . . . . . . . . Parts Stripped . | . . . . . . . . . . . . . . . . . . . . . . . . . . . Power Chain Reactions 7 | . . . . . . . . 3 . . . . . . . 2 1 . . . . . . 1 . . Alert | -11 -10 -10 -10 -9 -8 -8 -7 -7 -7 -7 -6 -6 -6 -6 -6 -5 -5 -5 -5 -5 -5 -4 -4 -4 -4 -3 ------- Run | Yrd Mat Min Exi Min Mat Sto Fac Low Low Zio Pro Fac Low Low Dat Pro Fac Ext Cet Arc Hub Fac Upp Upp Zhi Pro Peak Influence 1221 | 5 307 98 . . 314 722 302 . . . . 602 . . . . 682 1221 907 306 489 137 . . . . Initial 594 | . 2 58 . . . 109 183 . . . . 300 . . . . 374 228 594 306 77 90 . . . . Average 283 | 2 97 59 . . 125 474 124 . . . . 371 . . . . 495 627 765 287 196 113 . . . . Maximum Alert Level 4 | . 1 . . . 1 3 1 . . . . 2 . . . . 2 4 3 1 2 . . . . . Low Security (%) 49 | 100 87 100 . 100 68 12 83 . . . . 20 . . . . . . . . 63 100 . . . . Level 1 22 | . 12 . . . 31 22 16 . . . . 40 . . . . 24 26 . 100 27 . . . . . Level 2 22 | . . . . . . 59 . . . . . 39 . . . . 75 42 26 . 8 . . . . . Level 3 4 | . . . . . . 5 . . . . . . . . . . . 17 73 . . . . . . . Level 4 1 | . . . . . . . . . . . . . . . . . . 13 . . . . . . . . Level 5 . | . . . . . . . . . . . . . . . . . . . . . . . . . . . High Security . | . . . . . . . . . . . . . . . . . . . . . . . . . . . Max Security . | . . . . . . . . . . . . . . . . . . . . . . . . . . . Squads Dispatched 34 | . 3 . . . 3 5 8 . . . . 3 . . . . 2 4 1 . 3 1 . . . 1 Investigation 15 | . 3 . . . 1 4 2 . . . . 2 . . . . 1 1 1 . . . . . . . Extermination 6 | . . . . . . . 3 . . . . . . . . . 1 . . . 1 1 . . . . Reinforcement 10 | . . . . . 2 1 3 . . . . 1 . . . . . 1 . . 2 . . . . . Assault 3 | . . . . . . . . . . . . . . . . . . 2 . . . . . . . 1 Garrison . | . . . . . . . . . . . . . . . . . . . . . . . . . . . Intercept . | . . . . . . . . . . . . . . . . . . . . . . . . . . . Searches Triggered 2 | . . . . . . . . . . . . 1 . . . . 1 . . . . . . . . . Construction Impeded 1 | . . . . . . . . . . . . . . . . . . 1 . . . . . . . . Haulers Reinforced . | . . . . . . . . . . . . . . . . . . . . . . . . . . . Active Scanning Responses . | . . . . . . . . . . . . . . . . . . . . . . . . . . . Cargo Convoy Interrupts . | . . . . . . . . . . . . . . . . . . . . . . . . . . . Stealth | -11 -10 -10 -10 -9 -8 -8 -7 -7 -7 -7 -6 -6 -6 -6 -6 -5 -5 -5 -5 -5 -5 -4 -4 -4 -4 -3 --------- Run | Yrd Mat Min Exi Min Mat Sto Fac Low Low Zio Pro Fac Low Low Dat Pro Fac Ext Cet Arc Hub Fac Upp Upp Zhi Pro Distress Signals 8 | . . . . . 1 2 1 . . . . 1 . . . . 1 1 1 . . . . . . . Communications Jammed 32 | . . . . . . . . . . . . . . . . . 10 2 20 . . . . . . . Distress Signals 22 | . . . . . . . . . . . . . . . . . . 2 20 . . . . . . . Times Spotted 303 | . 16 4 . . 30 30 27 11 2 . 7 30 3 14 . 9 26 36 11 . 21 . 2 8 . 16 Peak Tracking Total 12 | . 2 2 . . 7 5 5 7 1 . 4 6 3 4 . 4 11 8 5 . 5 1 2 5 . 12 Tactical Retreats 22 | . 1 . . . . . . . . . . 6 2 3 . . 4 . . . 1 . 1 2 . 2 Traps | -11 -10 -10 -10 -9 -8 -8 -7 -7 -7 -7 -6 -6 -6 -6 -6 -5 -5 -5 -5 -5 -5 -4 -4 -4 -4 -3 ------- Run | Yrd Mat Min Exi Min Mat Sto Fac Low Low Zio Pro Fac Low Low Dat Pro Fac Ext Cet Arc Hub Fac Upp Upp Zhi Pro Traps Triggered 13 | . 4 . . . . . 2 . . . . . . . . . . 4 . . 3 . . . . . Indirectly 2 | . . . . . . . . . . . . . . . . . . 2 . . . . . . . . Trap Hack Attempts . | . . . . . . . . . . . . . . . . . . . . . . . . . . . Triggered . | . . . . . . . . . . . . . . . . . . . . . . . . . . . Disarmed 7 | . 7 . . . . . . . . . . . . . . . . . . . . . . . . . Reprogrammed . | . . . . . . . . . . . . . . . . . . . . . . . . . . . Reused . | . . . . . . . . . . . . . . . . . . . . . . . . . . . Traps Extracted . | . . . . . . . . . . . . . . . . . . . . . . . . . . . Installed . | . . . . . . . . . . . . . . . . . . . . . . . . . . . Triggered 1 | . . . . . . . . . . . . . . 1 . . . . . . . . . . . . Machines | -11 -10 -10 -10 -9 -8 -8 -7 -7 -7 -7 -6 -6 -6 -6 -6 -5 -5 -5 -5 -5 -5 -4 -4 -4 -4 -3 ---------- Run | Yrd Mat Min Exi Min Mat Sto Fac Low Low Zio Pro Fac Low Low Dat Pro Fac Ext Cet Arc Hub Fac Upp Upp Zhi Pro Machines Disabled 15 | . . . . . . 1 1 1 . . . 9 . 1 . . . . . . 1 . 1 . . . Max in Single Turn 6 | . . . . . . 1 1 1 . . . 6 . 1 . . . . . . . . 1 . . . Garrison Access 3 | . . . . . . . 1 . . . . 2 . . . . . . . . . . . . . . Network Hub 1 | . . . . . . . . . . . . . . . . . . . . . 1 . . . . . Machines Repaired . | . . . . . . . . . . . . . . . . . . . . . . . . . . . Machines Dismantled . | . . . . . . . . . . . . . . . . . . . . . . . . . . . Machines Sabotaged . | . . . . . . . . . . . . . . . . . . . . . . . . . . . Overloaded Fab Kills . | . . . . . . . . . . . . . . . . . . . . . . . . . . . Hacking | -11 -10 -10 -10 -9 -8 -8 -7 -7 -7 -7 -6 -6 -6 -6 -6 -5 -5 -5 -5 -5 -5 -4 -4 -4 -4 -3 --------- Run | Yrd Mat Min Exi Min Mat Sto Fac Low Low Zio Pro Fac Low Low Dat Pro Fac Ext Cet Arc Hub Fac Upp Upp Zhi Pro Machines Accessed 59 | . 10 . 1 . 7 10 8 . 1 . . 6 1 . 4 . 2 . 1 1 1 1 1 . 4 . Terminals 31 | . 8 . . . 6 10 5 . 1 . . . . . . . . . 1 . . . . . . . Fabricators 5 | . . . . . . . 2 . . . . 1 . . . . 1 . . . . 1 . . . . Repair Stations 1 | . . . . . . . . . . . . 1 . . . . . . . . . . . . . . Recycling Units 4 | . 2 . . . 1 . . . . . . 1 . . . . . . . . . . . . . . Scanalyzers . | . . . . . . . . . . . . . . . . . . . . . . . . . . . Garrison Access 6 | . . . . . . . 1 . . . . 3 . . . . 1 . . . 1 . . . . . Total Hacks 228 | . 37 . 1 . 31 23 36 . 1 . . 18 1 . 29 . 3 . 2 25 2 3 1 . 15 . Successful 161 | . 23 . 1 . 19 11 23 . 1 . . 10 1 . 29 . . . . 25 . 2 1 . 15 . Failed 67 | . 14 . . . 12 12 13 . . . . 8 . . . . 3 . 2 . 2 1 . . . . Catastrophic 12 | . . . . . 1 1 4 . . . . 2 . . . . 1 . 2 . 1 . . . . . Database Lockouts . | . . . . . . . . . . . . . . . . . . . . . . . . . . . Manual 158 | . 23 . . . 22 6 14 . . . . 33 . . . . 16 9 1 . 22 12 . . . . Terminals 117 | . 35 . . . 30 23 26 . 1 . . . . . . . . . 2 . . . . . . . Fabricators 16 | . . . . . . . 9 . . . . 2 . . . . 2 . . . . 3 . . . . Repair Stations 3 | . . . . . . . . . . . . 3 . . . . . . . . . . . . . . Recycling Units 9 | . 2 . . . 1 . . . . . . 6 . . . . . . . . . . . . . . Scanalyzers . | . . . . . . . . . . . . . . . . . . . . . . . . . . . Garrison Access 11 | . . . . . . . 1 . . . . 7 . . . . 1 . . . 2 . . . . . Terminal Hacks 120 | . 15 . 1 . 9 9 14 . 1 . . . 1 . 29 . . . . 25 . . 1 . 15 . Record 44 | . . . 1 . . . . . 1 . . . . . 11 . . . . 25 . . 1 . 5 . Part Schematic 15 | . . . . . . 1 1 . . . . . . . 11 . . . . . . . . . 2 . Robot Schematic 4 | . . . . . . . . . . . . . . . 4 . . . . . . . . . . . Robot Analysis 7 | . 1 . . . 2 . . . . . . . . . . . . . . . . . . . 4 . Prototype ID Bank 17 | . 3 . . . 2 2 3 . . . . . . . 3 . . . . . . . . . 4 . Open Door 3 | . . . . . . 2 . . . . . . 1 . . . . . . . . . . . . . Branch Access Points 3 | . 1 . . . 1 . 1 . . . . . . . . . . . . . . . . . . . Emergency Access Points 1 | . 1 . . . . . . . . . . . . . . . . . . . . . . . . . Machine Index 2 | . 1 . . . . . 1 . . . . . . . . . . . . . . . . . . . Terminal Index 3 | . . . . . 1 1 1 . . . . . . . . . . . . . . . . . . . Garrison Index 1 | . . . . . . . 1 . . . . . . . . . . . . . . . . . . . Alert Level 2 | . 1 . . . . . 1 . . . . . . . . . . . . . . . . . . . Unreport Threat 1 | . . . . . . . 1 . . . . . . . . . . . . . . . . . . . Locate Traps 4 | . 1 . . . 1 1 1 . . . . . . . . . . . . . . . . . . . Disarm Traps 2 | . 2 . . . . . . . . . . . . . . . . . . . . . . . . . Hauler Manifests 4 | . 1 . . . 1 1 1 . . . . . . . . . . . . . . . . . . . Zone Layout 7 | . 3 . . . 1 1 2 . . . . . . . . . . . . . . . . . . . Fabricator Hacks 1 | . . . . . . . 1 . . . . . . . . . . . . . . . . . . . Build 1 | . . . . . . . 1 . . . . . . . . . . . . . . . . . . . Repair Station Hacks 1 | . . . . . . . . . . . . 1 . . . . . . . . . . . . . . Scan Component 1 | . . . . . . . . . . . . 1 . . . . . . . . . . . . . . Recycling Unit Hacks 1 | . . . . . . . . . . . . 1 . . . . . . . . . . . . . . Report Inventory 1 | . . . . . . . . . . . . 1 . . . . . . . . . . . . . . Scanalyzer . | . . . . . . . . . . . . . . . . . . . . . . . . . . . Garrison Access Hacks 2 | . . . . . . . 1 . . . . 1 . . . . . . . . . . . . . . Seal Access 2 | . . . . . . . 1 . . . . 1 . . . . . . . . . . . . . . Unauthorized Hacks 36 | . 8 . . . 10 2 7 . . . . 7 . . . . . . . . . 2 . . . . Terminals 19 | . 6 . . . 9 2 2 . . . . . . . . . . . . . . . . . . . Track 5 | . 1 . . . 3 1 . . . . . . . . . . . . . . . . . . . . Assimilate 1 | . . . . . 1 . . . . . . . . . . . . . . . . . . . . . Botnet 12 | . 5 . . . 4 1 2 . . . . . . . . . . . . . . . . . . . Operators 1 | . . . . . 1 . . . . . . . . . . . . . . . . . . . . . Fabricators 9 | . . . . . . . 5 . . . . 2 . . . . . . . . . 2 . . . . Report 1 | . . . . . . . 1 . . . . . . . . . . . . . . . . . . . Prioritize 1 | . . . . . . . 1 . . . . . . . . . . . . . . . . . . . Fabnet 4 | . . . . . . . 2 . . . . 1 . . . . . . . . . 1 . . . . Haulers 3 | . . . . . . . 1 . . . . 1 . . . . . . . . . 1 . . . . Repair Stations . | . . . . . . . . . . . . . . . . . . . . . . . . . . . Recycling Units 7 | . 2 . . . 1 . . . . . . 4 . . . . . . . . . . . . . . Monitor 1 | . . . . . . . . . . . . 1 . . . . . . . . . . . . . . Reject 1 | . . . . . . . . . . . . 1 . . . . . . . . . . . . . . Recyclers 1 | . . . . . . . . . . . . 1 . . . . . . . . . . . . . . Mask 1 | . . . . . . . . . . . . 1 . . . . . . . . . . . . . . Tunnel 3 | . 2 . . . 1 . . . . . . . . . . . . . . . . . . . . . Scanalyzers . | . . . . . . . . . . . . . . . . . . . . . . . . . . . Garrison Access 1 | . . . . . . . . . . . . 1 . . . . . . . . . . . . . . Jam 1 | . . . . . . . . . . . . 1 . . . . . . . . . . . . . . Data Cores Recovered 3 | . . . . . . 2 . . . . . 1 . . . . . . . . . . . . . . Used 2 | . . . . . . 2 . . . . . . . . . . . . . . . . . . . . Hacking Detections 38 | . 8 . . . 6 8 7 . . . . 4 . . . . 2 . 1 . 1 1 . . . . Full Trace Events 5 | . 1 . . . . 1 1 . . . . 1 . . . . . . 1 . . . . . . . Feedback Events . | . . . . . . . . . . . . . . . . . . . . . . . . . . . Feedback Blocked . | . . . . . . . . . . . . . . . . . . . . . . . . . . . Robot Schematics Acquired 11 | . . . . . . . . . . 2 . . . . 4 . . . . . 5 . . . . . Robots Built . | . . . . . . . . . . . . . . . . . . . . . . . . . . . Authchips . | . . . . . . . . . . . . . . . . . . . . . . . . . . . Time . | . . . . . . . . . . . . . . . . . . . . . . . . . . . Total Robot Build Rating . | . . . . . . . . . . . . . . . . . . . . . . . . . . . Part Schematics Acquired 84 | . . . . . . 1 1 . . 16 . 41 . . 11 . . . . . . 12 . . 2 . Parts Built 2 | . . . . . . . 2 . . . . . . . . . . . . . . . . . . . Authchips . | . . . . . . . . . . . . . . . . . . . . . . . . . . . Time 84 | . . . . . . . 84 . . . . . . . . . . . . . . . . . . . Total Part Build Rating 8 | . . . . . . . 8 . . . . . . . . . . . . . . . . . . . Parts Repaired . | . . . . . . . . . . . . . . . . . . . . . . . . . . . Time . | . . . . . . . . . . . . . . . . . . . . . . . . . . . Parts Recycled . | . . . . . . . . . . . . . . . . . . . . . . . . . . . Recycled Matter . | . . . . . . . . . . . . . . . . . . . . . . . . . . . Retrieved Matter . | . . . . . . . . . . . . . . . . . . . . . . . . . . . Retrieved Components . | . . . . . . . . . . . . . . . . . . . . . . . . . . . Parts Scanalyzed . | . . . . . . . . . . . . . . . . . . . . . . . . . . . Part Schematics Acquired . | . . . . . . . . . . . . . . . . . . . . . . . . . . . Parts Damaged . | . . . . . . . . . . . . . . . . . . . . . . . . . . . Bothacking | -11 -10 -10 -10 -9 -8 -8 -7 -7 -7 -7 -6 -6 -6 -6 -6 -5 -5 -5 -5 -5 -5 -4 -4 -4 -4 -3 ------------ Run | Yrd Mat Min Exi Min Mat Sto Fac Low Low Zio Pro Fac Low Low Dat Pro Fac Ext Cet Arc Hub Fac Upp Upp Zhi Pro Used RIF Installer . | . . . . . . . . . . . . . . . . . . . . . . . . . . . Robots Hacked 10 | . . . . . . . . . . . 3 1 . . . 1 . 4 1 . . . . . . . Non-combat . | . . . . . . . . . . . . . . . . . . . . . . . . . . . Combat 10 | . . . . . . . . . . . 3 1 . . . 1 . 4 1 . . . . . . . Robot Hacks Applied . | . . . . . . . . . . . . . . . . . . . . . . . . . . . Relay Couplers Released 3 | . . . . . . . 3 . . . . . . . . . . . . . . . . . . . Programmers 3 | . . . . . . . 3 . . . . . . . . . . . . . . . . . . . Fabnet Peak Effective % 6 | . . . . . . . . . . . 6 6 6 6 6 5 5 5 5 5 5 1 1 1 1 3 Autooverrided 10 | . . . . . . . . . . . 3 1 . . . 1 . 4 1 . . . . . . . Robots Rewired 16 | . . . . . . . . 2 . . . . . . . . . 13 1 . . . . . . . Allies Hacked . | . . . . . . . . . . . . . . . . . . . . . . . . . . . Hacks Repelled . | . . . . . . . . . . . . . . . . . . . . . . . . . . . Allies | -11 -10 -10 -10 -9 -8 -8 -7 -7 -7 -7 -6 -6 -6 -6 -6 -5 -5 -5 -5 -5 -5 -4 -4 -4 -4 -3 -------- Run | Yrd Mat Min Exi Min Mat Sto Fac Low Low Zio Pro Fac Low Low Dat Pro Fac Ext Cet Arc Hub Fac Upp Upp Zhi Pro Total Allies 68 | . . . . . 1 10 . 2 . 4 3 2 . . . 1 6 28 7 . 4 . . . . . Largest Group 16 | . . . . . 1 11 5 2 2 6 7 4 . . . . 3 16 16 11 8 . . . . . Highest-Rated Group 1037 | . . . . . 10 183 93 36 36 189 219 153 . . . . 210 802 1037 768 480 . . . . . Highest-Rated Ally 159 | . . . . . 10 29 29 20 20 39 39 39 . . . . 70 159 153 96 96 . . . . . Zionite Dispatches 7 | . . . . . . . . . . . . 1 . . . . 2 2 . . 2 . . . . . Heavy 1 | . . . . . . . . . . . . . . . . . . 1 . . . . . . . . Light 2 | . . . . . . . . . . . . . . . . . 2 . . . . . . . . . Fire 2 | . . . . . . . . . . . . . . . . . . 1 . . 1 . . . . . Demo 1 | . . . . . . . . . . . . . . . . . . . . . 1 . . . . . Thermal Resupply 1 | . . . . . . . . . . . . 1 . . . . . . . . . . . . . . Total Orders 1 | . . . . . . . . . . . . 1 . . . . . . . . . . . . . . STAY 1 | . . . . . . . . . . . . 1 . . . . . . . . . . . . . . Ally Attacks 631 | . . . . . . 144 31 2 2 . 42 17 . . . 1 33 243 77 . 39 . . . . . Total Damage 13411 | . . . . . . 1796 365 33 33 . 805 506 . . . . 727 5572 2186 . 1388 . . . . . Kills 105 | . . . . . . 22 1 . . . 9 5 . . . . 2 37 15 . 14 . . . . . Allies Corrupted 6 | . . . . . . . . . . . 1 . . . . . 1 1 . . 3 . . . . . Allies Melted . | . . . . . . . . . . . . . . . . . . . . . . . . . . . Intel | -11 -10 -10 -10 -9 -8 -8 -7 -7 -7 -7 -6 -6 -6 -6 -6 -5 -5 -5 -5 -5 -5 -4 -4 -4 -4 -3 ------- Run | Yrd Mat Min Exi Min Mat Sto Fac Low Low Zio Pro Fac Low Low Dat Pro Fac Ext Cet Arc Hub Fac Upp Upp Zhi Pro Robot Analysis Total 7 | . 1 . . . 2 . . . . . . . . . . . . . . . . . . . 4 . Derelict Logs Recovered 10 | . . . . . . . . 1 1 2 2 . 1 1 . 1 . . . . . . . 1 . . Drone Launches . | . . . . . . . . . . . . . . . . . . . . . . . . . . . Drone Recoveries . | . . . . . . . . . . . . . . . . . . . . . . . . . . . Decoded 0b10 Intel 28 | . . . . . . . . . . . . 23 . . . . 5 . . . . . . . . . Traps 12 | . . . . . . . . . . . . 12 . . . . . . . . . . . . . . Emergency Access 16 | . . . . . . . . . . . . 11 . . . . 5 . . . . . . . . . Zionite Intel Received 15 | . . . . . . . . . . . . 6 . . . . 2 . . . 5 2 . . . . Main Access 1 | . . . . . . . . . . . . . . . . . . . . . . 1 . . . . Branch Access 1 | . . . . . . . . . . . . . . . . . 1 . . . . . . . . . Emergency Access 1 | . . . . . . . . . . . . 1 . . . . . . . . . . . . . . Component Schematics 2 | . . . . . . . . . . . . 2 . . . . . . . . . . . . . . Prototype Schematics 2 | . . . . . . . . . . . . 1 . . . . . . . . . 1 . . . . Unaware Schematics 1 | . . . . . . . . . . . . . . . . . . . . . 1 . . . . . Trap Installations 1 | . . . . . . . . . . . . . . . . . . . . . 1 . . . . . Active Terminals 1 | . . . . . . . . . . . . . . . . . . . . . 1 . . . . . Active Garrisons 2 | . . . . . . . . . . . . 1 . . . . . . . . 1 . . . . . Depthwide Sectors/0 1 | . . . . . . . . . . . . 1 . . . . . . . . . . . . . . Depthwide Sectors/-1 2 | . . . . . . . . . . . . . . . . . 1 . . . 1 . . . . . Exploration | -11 -10 -10 -10 -9 -8 -8 -7 -7 -7 -7 -6 -6 -6 -6 -6 -5 -5 -5 -5 -5 -5 -4 -4 -4 -4 -3 ------------- Run | Yrd Mat Min Exi Min Mat Sto Fac Low Low Zio Pro Fac Low Low Dat Pro Fac Ext Cet Arc Hub Fac Upp Upp Zhi Pro Turns Passed 14812 | 80 941 523 427 45 1177 1205 1648 759 372 1688 520 1220 175 525 40 106 566 758 282 65 432 259 212 366 207 214 Spaces Moved 11640 | 41 449 231 169 14 488 627 830 400 212 993 295 1477 322 903 76 161 709 766 331 45 647 320 369 444 177 144 Core 10 | 2 1 . . . 3 . . . . . . . . . . . . . . . . . . . . 4 Treads 4913 | 39 448 231 169 14 465 627 830 400 212 993 295 190 . . . . . . . . . . . . . . Legs . | . . . . . . . . . . . . . . . . . . . . . . . . . . . Wheels 20 | . . . . . 20 . . . . . . . . . . . . . . . . . . . . . Hover 6697 | . . . . . . . . . . . . 1287 322 903 76 161 709 766 331 45 647 320 369 444 177 140 Flight . | . . . . . . . . . . . . . . . . . . . . . . . . . . . Fastest Speed 44 | 50 160 160 240 320 140 163 165 166 166 168 168 52 52 52 52 52 45 44 44 50 50 55 56 55 61 50 Average Speed 105 | 154 160 207 251 320 189 164 165 166 166 168 168 66 52 52 52 52 49 44 44 50 50 55 56 75 95 143 Slowest Speed 700 | 160 200 240 320 320 700 167 168 166 168 168 168 200 52 52 52 52 101 48 50 50 56 56 56 106 106 190 Overloaded Moves . | . . . . . . . . . . . . . . . . . . . . . . . . . . . Propulsion Burnouts . | . . . . . . . . . . . . . . . . . . . . . . . . . . . Robots Hopped . | . . . . . . . . . . . . . . . . . . . . . . . . . . . Cave-ins Triggered 1 | . . . . . . . . . . . . . . . . . 1 . . . . . . . . . Exploration Rate (%) 54 | 4 81 62 55 11 50 98 28 62 48 88 58 51 52 75 68 40 26 89 65 75 58 10 70 67 63 19 Regions Visited 26 Branch Regions 20 Pre-discovered Areas 27 | . 2 . 1 . 1 1 . 1 . . . 6 1 . 1 . 5 . . . 5 . . . 3 . Known Exits Taken 22 | . 1 . . . 1 1 1 1 1 1 1 1 1 1 1 1 1 1 1 1 1 1 1 1 1 . Unknown Exits Taken 4 | 1 . 1 1 1 . . . . . . . . . . . . . . . . . . . . . . Scrap Searched 24 | . . 1 . . . . . 1 3 3 4 . 2 4 . 1 . . . . . . 2 1 . 2 Spaces Dug 69 | . . . . . . 1 . . . . . 31 1 2 . . 21 1 . . 4 8 . . . . Terrain Destroyed 144 | . . . . . 1 1 2 14 . . 1 77 1 2 . 2 26 2 . . 4 8 . 3 . . Melee 66 | . . . . . . 1 . . . . . 31 1 2 . . 18 1 . . 4 8 . . . . Projectile 10 | . . . . . 1 . 2 . . . 1 1 . . . . 4 1 . . . . . . . . AOE 68 | . . . . . . . . 14 . . . 45 . . . 2 4 . . . . . . 3 . . Terrain Rammed . | . . . . . . . . . . . . . . . . . . . . . . . . . . . Walls Destroyed . | . . . . . . . . . . . . . . . . . . . . . . . . . . . Machines Disabled . | . . . . . . . . . . . . . . . . . . . . . . . . . . . Actions | -11 -10 -10 -10 -9 -8 -8 -7 -7 -7 -7 -6 -6 -6 -6 -6 -5 -5 -5 -5 -5 -5 -4 -4 -4 -4 -3 --------- Run | Yrd Mat Min Exi Min Mat Sto Fac Low Low Zio Pro Fac Low Low Dat Pro Fac Ext Cet Arc Hub Fac Upp Upp Zhi Pro Total 13237 | 50 553 250 172 14 604 720 995 462 222 1012 309 1616 328 930 75 174 812 1141 418 86 719 378 371 471 203 152 Wait 562 | . 24 . . . 7 8 56 4 2 6 . 19 . 7 . 5 4 230 39 42 48 44 . 17 . . Move 11614 | 40 448 230 168 13 487 626 829 399 211 992 294 1476 321 902 75 160 708 765 330 44 646 319 368 443 176 144 Hop . | . . . . . . . . . . . . . . . . . . . . . . . . . . . Pick Up 93 | 1 10 1 3 . 11 6 15 . 1 3 . 10 2 . . . 9 9 2 . 1 1 1 2 3 2 Fast Attach 76 | 6 9 . . . 9 5 2 2 . 1 1 10 . . . . 8 8 2 . 3 3 . 1 6 . Attach 39 | . 1 2 . . 3 . 5 1 1 . . 5 1 . . 1 9 3 . . 2 . 1 1 1 2 Detach 11 | . . . . . . . . . . 1 1 2 . . . . 1 3 1 . . . . 1 1 . Swap 55 | 1 1 1 1 . 7 8 2 2 . 4 4 4 1 1 . . 4 4 7 . 1 . . 2 . . Drop 106 | . 2 . . . 8 16 15 . . 4 1 23 2 . . . 2 12 5 . 1 1 . 2 9 3 Fire 396 | 2 57 16 . . 72 48 71 25 7 . 8 22 . 13 . 8 13 20 12 . . . . 2 . . Melee 174 | . . . . . . 1 . . . 1 . 45 1 7 . . 54 11 18 . 17 10 1 . 7 1 Ram . | . . . . . . . . . . . . . . . . . . . . . . . . . . . Kick . | . . . . . . . . . . . . . . . . . . . . . . . . . . . Crush 4 | . 1 . . 1 . 2 . . . . . . . . . . . . . . . . . . . . Escape Stasis 8 | . . . . . . . . . . . . . . . . . . 8 . . . . . . . . Rewire 99 | . . . . . . . . 29 . . . . . . . . . 68 2 . . . . . . . Trap . | . . . . . . . . . . . . . . . . . . . . . . . . . . . Miscellaneous . | . . . . . . . . . . . . . . . . . . . . . . . . . . . Route ------- -11/Scrapyard -10/Materials (discovered 5 exits: [*Mat x3] / *Min x2) -10/Mines (discovered 2 exits: [*Mat] / *Exi) -10/Exiles -9/Mines -8/Materials (discovered 3 exits: *Fac / *Sto x2) -8/Storage (discovered 2 exits: *Fac / *Rec) -7/Factory (discovered 2 exits: *Low x2) -7/Lower Caves -7/Lower Caves (discovered 2 exits: *Fac / *Zio) -7/Zion -6/Proximity Caves -6/Factory (discovered 2 exits: *Fac / *Low) -6/Lower Caves -6/Lower Caves -6/Data Miner -5/Proximity Caves -5/Factory (discovered 4 exits: Upp x2 / *Ext x2) -5/Extension (discovered 2 exits: *Fac / *Cet) -5/Cetus -5/Archives (discovered 2 exits: *Hub x2) -5/Hub_04(d) -4/Factory (discovered 5 exits: Res x4 / *Upp) -4/Upper Caves -4/Upper Caves (discovered 2 exits: *Res / *Zhi) -4/Zhirov -3/Proximity Caves History --------- Turn | Location | Event 17 | -11/Scrapyard | Discovered new exit (range 16) 81 | -11/Scrapyard | Entered Materials 154 | -10/Materials | Identified exit to Mines 304 | -10/Materials | Discovered new exit (range 4) 352 | -10/Materials | Build established: Mutant 637 | -10/Materials | Discovered new exit (range 11) 823 | -10/Materials | Discovered new exit (range 3) 1022 | -10/Materials | Entered Mines 1158 | -10/Mines | Discovered new exit (range 11) 1214 | -10/Mines | Lost 3 parts (2n1w) 1533 | -10/Mines | Deemed a non-threat by the Exiles lab entrance 1536 | -10/Mines | Discovered new exit (range 5) 1545 | -10/Mines | Entered Exiles 1613 | -10/Exiles | Met 8R-AWN 1649 | -10/Exiles | Met EX-HEX 1764 | -10/Exiles | Met EX-DEC 1808 | -10/Exiles | Learned location of Zion (-7) 1937 | -10/Exiles | Discovered new exit (range 14) 1972 | -10/Exiles | Entered Mines 1982 | -9/Mines | Discovered new exit (range 12) 2017 | -9/Mines | Entered Materials 2017 | -8/Materials | Evolved 4 slots: Propulsion x2, Utility x2 2166 | -8/Materials | Lost 3 parts (1p1n1u) 2206 | -8/Materials | Identified exit to Storage 2734 | -8/Materials | Build established: Scavenger-Mutant 2831 | -8/Materials | Destroyed 7 combat bots 3001 | -8/Materials | Discovered new exit (range 6) 3194 | -8/Materials | Entered Storage 3194 | -8/Storage | Accompanied by 1 ally 3240 | -8/Storage | Learned location of Armory (-4) 3261 | -8/Storage | Assisted by bots powering up and referring to "LRC-V3" 3561 | -8/Storage | Build established: Commander-Mutant 3599 | -8/Storage | Used back door to open Recycling access 3599 | -8/Storage | Discovered new exit (range 5) 4167 | -8/Storage | Discovered new exit (range 16) 4306 | -8/Storage | Identified exit to Recycling 4394 | -8/Storage | Identified exit to Factory 4399 | -8/Storage | Entered Factory 4399 | -7/Factory | Accompanied by 5 allies 4399 | -7/Factory | Evolved 2 slots: Propulsion x1, Utility x1 4719 | -7/Factory | Fabricated Weapon Cycler (x2) 4976 | -7/Factory | Build established: Hacker-Mutant 5300 | -7/Factory | Identified exit to Lower Caves 6047 | -7/Factory | Entered Lower Caves 6341 | -7/Lower Caves | Attracted the attention of an 0b10 outpost 6791 | -7/Lower Caves | Discovered new exit (range 8) 6801 | -7/Lower Caves | Identified exit to Lower Caves 6806 | -7/Lower Caves | Entered another Lower Caves area 6806 | -7/Lower Caves | Accompanied by 2 allies 6825 | -7/Lower Caves | Discovered new exit (range 12) 6858 | -7/Lower Caves | Identified exit to Factory 6936 | -7/Lower Caves | Learned Factory interactive machine intel 7029 | -7/Lower Caves | Attracted the attention of an 0b10 checkpoint 7162 | -7/Lower Caves | Discovered new exit (range 5) 7172 | -7/Lower Caves | Identified exit to Zion 7178 | -7/Lower Caves | Entered Zion 7178 | -7/Zion | Accompanied by 2 allies 7271 | -7/Zion | System corruption cleaned by Quarantine Array 7303 | -7/Zion | Found CR-A16's Pointy Stick 7337 | -7/Zion | Given the Hacking Drone Bay 7338 | -7/Zion | Found Prototype Device 7362 | -7/Zion | Identified Hacking Drone Bay 7379 | -7/Zion | Discovered new exit (range 9) 7392 | -7/Zion | Identified exit to Proximity Caves 7562 | -7/Zion | Given A8's code to call for help 7562 | -7/Zion | Learned Factory security intel 7715 | -7/Zion | Learned 8 Factory zone layouts 7974 | -7/Zion | Imprinted 7976 | -7/Zion | Declared Zion's savior 8866 | -7/Zion | Entered Proximity Caves 8866 | -6/Proximity Caves | Accompanied by 6 allies 8972 | -6/Proximity Caves | Spotter reported a threat 9026 | -6/Proximity Caves | Spotter reported a threat 9120 | -6/Proximity Caves | Learned Factory stockpile data 9376 | -6/Proximity Caves | Spotted B-75 Beast 9386 | -6/Proximity Caves | Entered Factory 9386 | -6/Factory | Accompanied by 4 allies 9386 | -6/Factory | Evolved 2 slots: Propulsion x1, Utility x1 9390 | -6/Factory | Loaded intel: 52 interactive machine locations 9686 | -6/Factory | Build established: Hacker-Skirmisher 9736 | -6/Factory | Search patrols dispatched 10040 | -6/Factory | Retrieved Zion intel report: Depthwide Sectors/0 10069 | -6/Factory | Build established: Hacker-Scout 10104 | -6/Factory | Discovered new exit (range 8) 10107 | -6/Factory | Identified exit to Factory 10111 | -6/Factory | Spotted B-75 Beast 10233 | -6/Factory | Retrieved Zion intel report: Active Garrisons 10263 | -6/Factory | Retrieved Zion intel report: Component Schematics 10264 | -6/Factory | Zion Thermal Resupply teleported in 10396 | -6/Factory | Retrieved Zion intel report: Prototype Schematics 10447 | -6/Factory | Discovered new exit (range 6) 10450 | -6/Factory | Identified exit to Lower Caves 10459 | -6/Factory | Retrieved Zion intel report: Component Schematics 10528 | -6/Factory | Retrieved Zion intel report: Emergency Access 10606 | -6/Factory | Entered Lower Caves 10635 | -6/Lower Caves | Encountered a Warlord checkpoint 10700 | -6/Lower Caves | Attracted the attention of an 0b10 checkpoint 10749 | -6/Lower Caves | Found Alien Artifact 10764 | -6/Lower Caves | Discovered new exit (range 6) 10767 | -6/Lower Caves | Identified exit to Lower Caves 10781 | -6/Lower Caves | Entered another Lower Caves area 10994 | -6/Lower Caves | Build established: Mutant 11234 | -6/Lower Caves | Encountered a Warlord checkpoint 11235 | -6/Lower Caves | Discovered new exit (range 15) 11249 | -6/Lower Caves | Identified exit to Data Miner 11306 | -6/Lower Caves | Entered Data Miner 11306 | -6/Data Miner | Discovered new exit (range 6) 11316 | -6/Data Miner | Met Data Miner 11326 | -6/Data Miner | Learned location of Section 7 (-2) 11326 | -6/Data Miner | Acquired the access code to Warlord's prototype stash 11334 | -6/Data Miner | Received God Mode back door access code from Data Miner 11345 | -6/Data Miner | Identified exit to Proximity Caves 11346 | -6/Data Miner | Entered Proximity Caves 11386 | -5/Proximity Caves | Destroyed 7 combat bots 11388 | -5/Proximity Caves | Learned Factory trap positions 11394 | -5/Proximity Caves | Spotter reported a threat 11418 | -5/Proximity Caves | Spotter reported a threat 11447 | -5/Proximity Caves | Discovered exit to Factory (range 12) 11452 | -5/Proximity Caves | Entered Factory 11452 | -5/Factory | Evolved 2 slots: Utility x2 11453 | -5/Factory | Identified exit to Extension 11454 | -5/Factory | Loaded intel: 87 trap records 11569 | -5/Factory | Retrieved Zion intel report: Branch Access 11569 | -5/Factory | Identified exit to Upper Caves 11718 | -5/Factory | Lost 5 parts (1p2n1u1w) 11752 | -5/Factory | Search patrols dispatched 11752 | -5/Factory | Retrieved Zion intel report: Depthwide Sectors/-1 11753 | -5/Factory | Zion Light squad teleported in 11841 | -5/Factory | Lost 3 allies 11870 | -5/Factory | Found Rocket Array 11952 | -5/Factory | Crushed by falling debris 11983 | -5/Factory | Lost 3 parts (1n1u1w) 12011 | -5/Factory | Zion Light squad teleported in 12018 | -5/Factory | Entered Extension 12018 | -5/Extension | Accompanied by 3 allies 12065 | -5/Extension | Found Prototype Protection 12065 | -5/Extension | Identified Zio. Weapon Casing 12124 | -5/Extension | Rescued a captive Derelict 12126 | -5/Extension | Rescued a captive Derelict 12160 | -5/Extension | Rescued a captive Derelict 12171 | -5/Extension | P-70 Sage assimilated allied P2-TQ8(b) 12173 | -5/Extension | System corruption reached 10% 12186 | -5/Extension | Enhanced Grunt warped into view, answering call for help 12188 | -5/Extension | Enhanced Grunt warped into view, answering call for help 12213 | -5/Extension | Rescued A7 12222 | -5/Extension | Lost 7 allies 12318 | -5/Extension | First assault squad dispatched 12479 | -5/Extension | Build established: Messiah-Mutant 12514 | -5/Extension | Spotted B-75 Beast 12544 | -5/Extension | Allies destroyed B-75 Beast 12545 | -5/Extension | Spotted B-75 Beast 12562 | -5/Extension | Allies destroyed B-75 Beast 12623 | -5/Extension | Zion Heavy squad teleported in 12642 | -5/Extension | Zion Fire squad teleported in 12718 | -5/Extension | Discovered new exit (range 10) 12719 | -5/Extension | Discovered new exit (range 6) 12774 | -5/Extension | Identified exit to Cetus 12776 | -5/Extension | Entered Cetus 12776 | -5/Cetus | Accompanied by 14 allies (A7) 12780 | -5/Cetus | Spotted Cetus Guard 12781 | -5/Cetus | Acquired a Cetus Manufacturing Module code from A7 12783 | -5/Cetus | Spotted Cetus Guard 12786 | -5/Cetus | Spotted Cetus Guard 12786 | -5/Cetus | Spotted Cetus Guard 12797 | -5/Cetus | Allies destroyed Cetus Guard 12800 | -5/Cetus | Allies destroyed Cetus Guard 12804 | -5/Cetus | Rewired Cetus Guard 12806 | -5/Cetus | Allies destroyed Cetus Guard 12830 | -5/Cetus | Lost 5 allies 12835 | -5/Cetus | Started Cetus Manufacturing Module 12860 | -5/Cetus | Manufactured an Enhanced Grunt 12885 | -5/Cetus | Manufactured an Enhanced Grunt 12910 | -5/Cetus | Manufactured an Enhanced Grunt 12935 | -5/Cetus | Manufactured an Enhanced Grunt 12960 | -5/Cetus | Manufactured an Enhanced Grunt 13005 | -5/Cetus | Local machine network offline 13006 | -5/Cetus | Discovered new exit (range 21) 13020 | -5/Cetus | Extracted ID and sensor layout for unrecognized location from A7's data core 13049 | -5/Cetus | Identified exit to Archives 13052 | -5/Cetus | Lost 5 allies 13058 | -5/Cetus | Entered Archives 13058 | -5/Archives | Accompanied by 11 allies 13065 | -5/Archives | Met Zhirov 13065 | -5/Archives | Discovered new exit (range 22) 13067 | -5/Archives | Discovered new exit (range 22) 13070 | -5/Archives | Read partially decrypted archive contents 13071 | -5/Archives | Reinforcements dispatched to Archives 13079 | -5/Archives | Identified exit to Hub_04(d) 13123 | -5/Archives | Entered Hub_04(d) 13123 | -5/Hub_04(d) | Accompanied by 6 allies 13178 | -5/Hub_04(d) | Retrieved Zion intel report: Active Garrisons 13367 | -5/Hub_04(d) | Retrieved Zion intel report: Unaware Schematics 13399 | -5/Hub_04(d) | Build established: Messiah-Ninja 13432 | -5/Hub_04(d) | Retrieved Zion intel report: Depthwide Sectors/-1 13439 | -5/Hub_04(d) | Retrieved Zion intel report: Active Terminals 13442 | -5/Hub_04(d) | Retrieved Zion intel report: Trap Installations 13443 | -5/Hub_04(d) | Zion Demo squad teleported in 13470 | -5/Hub_04(d) | Zion Fire squad teleported in 13543 | -5/Hub_04(d) | Discovered new exit (range 12) 13547 | -5/Hub_04(d) | Network Hub disabled 13555 | -5/Hub_04(d) | Identified exit to Factory 13555 | -5/Hub_04(d) | Entered Factory 13555 | -4/Factory | Evolved 2 slots: Utility x2 13583 | -4/Factory | Lost 6 allies 13585 | -4/Factory | Lost 4 parts (2p1n1u) 13601 | -4/Factory | Retrieved Zion intel report: Main Access 13601 | -4/Factory | Identified exit to Research 13728 | -4/Factory | Retrieved Zion intel report: Prototype Schematics 13735 | -4/Factory | Discovered new exit (range 8) 13739 | -4/Factory | Identified exit to Upper Caves 13814 | -4/Factory | Entered Upper Caves 13845 | -4/Upper Caves | Build established: Scavenger-Ninja 13960 | -4/Upper Caves | Found Alien Artifact 14015 | -4/Upper Caves | Discovered new exit (range 8) 14020 | -4/Upper Caves | Identified exit to Upper Caves 14026 | -4/Upper Caves | Entered another Upper Caves area 14027 | -4/Upper Caves | Encountered a Warlord checkpoint 14041 | -4/Upper Caves | Discovered exit to Research (range 10) 14384 | -4/Upper Caves | Discovered new exit (range 7) 14391 | -4/Upper Caves | Identified exit to Zhirov 14392 | -4/Upper Caves | Entered Zhirov 14392 | -4/Zhirov | Discovered new exit (range 3) 14435 | -4/Zhirov | Learned location of Quarantine (-3) 14435 | -4/Zhirov | Learned location of Command (-1) 14466 | -4/Zhirov | Found Alien Artifact 14466 | -4/Zhirov | Identified Integrated Dissipator 14466 | -4/Zhirov | Installed Integrated Dissipator, increased core heat dissipation (+20) 14491 | -4/Zhirov | Found Alien Artifact 14547 | -4/Zhirov | Build established: Hacker-Assassin 14599 | -4/Zhirov | Identified exit to Proximity Caves 14599 | -4/Zhirov | Entered Proximity Caves 14626 | -3/Proximity Caves | Attracted the attention of an 0b10 checkpoint 14708 | -3/Proximity Caves | Lost 5 parts (2p1n1u1w) 14717 | -3/Proximity Caves | Attracted the attention of an 0b10 outpost 14749 | -3/Proximity Caves | Spotted B-86 Titan 14758 | -3/Proximity Caves | Core integrity fell below 50% 14807 | -3/Proximity Caves | Core integrity fell below 20% 14813 | -3/Proximity Caves | Destroyed by G-67 Veteran with Field Laser Last Messages --------------- 14774_ S-43 Plague destroyed. 14778_ Lgt. Antimatter Reactor fries itself beyond repair. 14780_ Xenon Bombardment Thruster fries itself beyond repair. 14805_ C-30 ARC bursts open, deploying its payload. 14805_ G-73 Enforcer unfolds itself. 14805_ G-67 Veteran unfolds itself. 14805_ E-15 Imp unfolds itself. 14805_ Adv. System Shield destroyed. 14806_ Exp. Heat Sink destroyed. 14807_ Gyrokinetic Inverter destroyed. 14808_ Dropped Lrg. Storage Unit. 14809_ Dropped Imp. Transmission Jammer. 14809_ E-15 Imp destroyed. 14810_ Acquired Alien Artifact. 14810_ Adv. System Shield destroyed. 14812_ Dropped Smartbomb Launcher. 14812_ Acquired Alien Artifact. Map ----- +----------------------------------------------------+ | ?????????????????????????????????????????????????? | | ?????????????????????????????????????????????????? | | ?????????????????????????????????????????????????? | | ?????????????????????????????????????????????????? | | ?????????????????????????????????????????????????? | | ?????????????????????????????????????????????????? | | ?????????????????????????????????????????????????? | | ?????????????????????????????????????????????????? | | ?????????????????????????????????????????????????? | | ?????????????????????????????????????????????????? | | ?????????????????????????????????????????????????? | | ?????????????????????????????????????????????????? | | ?????????????????????????????????????????????????? | | ?????????????????????????????????????????????????? | | ?????????????????????????????????????????????????? | | ?????????????????????????????????????????????????? | | ?????????????????????#???????????????????????????? | | ?????????????????????# #######???????????????????? | | ?????????????????#???# # #???????????????????? | | ?????????????????# ### # " " #???????????????????? | | ?????????????????? # " " #???????????????????? | | ???????????????????? #???????????????????? | | ?????????????????????# ! " ##??????????????????? | | ??????????????????????#!]ggg ## #??????????????? | | ??????????????????????#!!]%g #??????????????? | | ??????????????????????## @ ## #?????????????? | | ???????????????????????#!= #??? #?????????????? | | ???????????????????????# ##?????? #?????????????? | | ???????????????????????# b#??????????????????????? | | ???????????????????????#gg#??????????????????????? | | ???????????????????????# g#??????????????????????? | | ???????????????????????#Y #??????????????????????? | | ???????????????????????# #??????????????????????? | | ??????????????########## #??????????????????????? | | ??????????????# Y #??????????????????????? | | ########??????# #??????????????????????? | | # #??????# ##########??????????????????????? | | # #??????# #???????????????????????????????? | | # ####???# #???????????????????????????????? | | # ##??# #???????????????????????????????? | | # ####% #???????????????????????????????? | | # %= #???????????????????????????????? | | % #######"##???????????????????????????????? | | ##?????###????????????????????????????????? | | ##### ##?????????????????????????????????????????? | | ????#%#??????????????????????????????????????????? | | ????#=#??????????????????????????????????????????? | | ????#%#??????????????????????????????????????????? | | ????#!#??????????????????????????????????????????? | | #####!#??????????????????????????????????????????? | +----------------------------------------------------+ Best States ------------- Heat Dissipation 66 Energy Generation 27 Energy Capacity 650 Matter Stores 300 Matter Capacity 300 Sight Range 22 Robot Scan Range 16 Terrain Scan Density 10 Jamming Range 14 Armor Coverage 625 Resistance: KI 20 Resistance: TH 20 Resistance: EX 20 Resistance: EM 20 Resistance: I 20 Resistance: S 20 Resistance: P 20 Power Shielding 66 Propulsion Shielding 66 Utility Shielding 66 Weapon Shielding 100 Weapon Cycling 15 Evasion (%) 56 Recoil Reduction 6 Kinecelleration 30 Offensive Hacking 22 Defensive Hacking 28 Item Schematics ----------------- Imp. Utility Shielding | -8/Storage | Hacked Adv. Shield Generator | -7/Factory | Hacked Mak. Salvage Targeting Computer | -7/Zion | Archive Adv. Sensor Array | -7/Zion | Archive Energy Well | -7/Zion | Archive Greatsword | -7/Zion | Archive Arc Thrower | -7/Zion | Archive Corruption Screen | -7/Zion | Archive Imp. Transmission Jammer | -7/Zion | Archive Angular Momentum Engine | -7/Zion | Archive Lightning Gun | -7/Zion | Archive Imp. Cooling System | -7/Zion | Archive Enh. Optical Array | -7/Zion | Archive Chainsword | -7/Zion | Archive Flexi-carbon Leg | -7/Zion | Archive Hvy. Riot Gun | -7/Zion | Archive Adv. Cooling System | -7/Zion | Archive Lrn. Phase Cannon | -7/Zion | Archive Weapon Cycler | -6/Factory | Z-intel Component Analysis Suite | -6/Factory | Z-intel Adv. Heat Sink | -6/Factory | Z-intel Hcp. Storage Unit | -6/Factory | Z-intel Imp. Sensor Array | -6/Factory | Z-intel Reaction Control System | -6/Factory | Z-intel Imp. Gravmag System | -6/Factory | Z-intel Thermal Generator | -6/Factory | Z-intel Mic. Nuclear Core | -6/Factory | Z-intel Phase Shifter | -6/Factory | Z-intel EM Disruption Field | -6/Factory | Z-intel Hardlight Generator | -6/Factory | Z-intel System Shield | -6/Factory | Z-intel Arm. Leg | -6/Factory | Z-intel Hrd. Light Armor Plating | -6/Factory | Z-intel Imp. Heavy Laser | -6/Factory | Z-intel Gui. EMP Blaster | -6/Factory | Z-intel Shock Maul | -6/Factory | Z-intel Cld. Cesium-ion Thruster | -6/Factory | Z-intel Imp. Heavy Machine Gun | -6/Factory | Z-intel Cld. Plasma Cannon | -6/Factory | Z-intel Thermal Defense Suite | -6/Factory | Z-intel F-cell Engine | -6/Factory | Z-intel Enh. Nuclear Core | -6/Factory | Z-intel Ion Burst Cannon | -6/Factory | Z-intel Ion Cannon | -6/Factory | Z-intel Gravmag System | -6/Factory | Z-intel Cesium-ion Thruster | -6/Factory | Z-intel Focal Shield | -6/Factory | Z-intel Cmb. Airjet | -6/Factory | Z-intel Hvy. Particle Cannon | -6/Factory | Z-intel System Guard | -6/Factory | Z-intel Lrg. Matter Pod | -6/Factory | Z-intel Actuator Array | -6/Factory | Z-intel Adv. Terrain Scanner | -6/Factory | Z-intel Matter Filter | -6/Factory | Z-intel Imp. Shield Generator | -6/Factory | Z-intel Hacking Suite | -6/Factory | Z-intel Imp. VSS Leg | -6/Factory | Z-intel Shield Generator | -6/Factory | Z-intel Particle Charger | -6/Factory | Z-intel Combat Drone Bay | -6/Data Miner | Free Lgt. Regenerative Plating | -6/Data Miner | Free Cld. Gravmag System | -6/Data Miner | Free Prc. Matter Filter | -6/Data Miner | Free Enh. Coil Gun | -6/Data Miner | Free Field Propulsion Array | -6/Data Miner | Free Adv. Reaction Control System | -6/Data Miner | Free Railgun | -6/Data Miner | Free Arm. Medium Treads | -6/Data Miner | Free Imp. Force Booster | -6/Data Miner | Free Adv. Recalibrator | -6/Data Miner | Free Com. Tesla Bomb Launcher | -4/Factory | Z-intel Diametric Drive | -4/Factory | Z-intel Cld. Proton Cannon | -4/Factory | Z-intel Exp. Heat Sink | -4/Factory | Z-intel Exp. Optical Array | -4/Factory | Z-intel Imp. Energy Well | -4/Factory | Z-intel Hvy. Proton Cannon | -4/Factory | Z-intel Kinetic Spear | -4/Factory | Z-intel Adv. Matter Compressor | -4/Factory | Z-intel Exp. ECM Suite | -4/Factory | Z-intel Particle Accelerator | -4/Factory | Z-intel Hvy. Neutron Cannon | -4/Factory | Z-intel Assault Drone Bay | -4/Zhirov | Free Imp. Arc Thrower | -4/Zhirov | Free Robot Schematics ------------------ S-27 Virus | -7/Zion | Archive K-01 Serf | -7/Zion | Archive L-41 Fighter | -6/Data Miner | Free R-10 Processor | -6/Data Miner | Free G-50 Soldier | -6/Data Miner | Free H-66 Slayer | -6/Data Miner | Free Y-64 Sentinel | -5/Hub_04(d) | Z-intel E-15 Imp | -5/Hub_04(d) | Z-intel A-02 Transporter | -5/Hub_04(d) | Z-intel A-15 Conveyor | -5/Hub_04(d) | Z-intel R-06 Scavenger | -5/Hub_04(d) | Z-intel Fabricated ------------ Weapon Cycler | x2 | -7/Factory | Preloaded Alien Tech Used ----------------- Integrated Dissipator Achievements -------------- None Challenges ------------ None Game ------ Seed SubatomicTransportActivator Manual? 0 Play Time 02:41:43 Cumulative 160.2 hours Start 2024.03.11 @ 16:24:12 End 2024.03.11 @ 19:10:21 Sessions 1 Manual Loads 0 Difficulty Adventurer Special Mode None Game No. 141 Rogue 14 Adventurer 125 Explorer 2 Win Type - Total 8 Types 3/0/2/0/0/1/1/1/0 Lore% 72 Gallery% 78 Achievement% 73 Wizard Run 0 Options --------- Layout 1 ASCII 0 Keyboard 0 Movement Mouse Keybinds 0 Fullscreen 1 Font 32/SmallcapsGlow Map View 50x35 Zoom Use 0% Tactical HUD 1 Map Filters NONE Filters NONE Steam 1 RUN: bf113109-3ddb-49f5-8329-f6f10f3555bf